Cogmind - Beta 14 @@@ ROGUE MODE // 2024.11.27 @ 13:09:16 Player: skye Result: Destroyed by as-14371 with Assembled Maul Performance ------------- Evolutions (0) 0 Regions Visited (2) 400 Robots Destroyed (23) 115 Value Destroyed (478) 478 Prototype IDs (0) 0 Alien Tech Used (0) 0 Bonus (0) 0 TOTAL SCORE: 993 Bonus ------- None Cogmind --------- Core Integrity 0/250 Matter 300/300 Energy 84/100 System Corruption 14% Temperature Cool (0) Movement Treading (240) Ox1 Location -10/Mines Parts ------- > --- POWER (1) -------- (None) > --- PROPULSION (2) --- Light Treads > --- UTILITY (2) ------ Large Storage Unit Propulsion Shielding > --- WEAPON (2) ------- (None) > --- INVENTORY (15) --- Ion Engine Light Ion Engine Light Treads Compact Wheel Compact Wheel Small Storage Unit Sensor Array Hacking Suite EM Pulse Gun Light Assault Rifle Mining Laser Peak State ------------ > --- POWER ------------ Ion Engine > --- PROPULSION ------- Light Treads Light Treads > --- UTILITY ---------- Heat Sink Large Storage Unit > --- WEAPON ----------- Light Assault Rifle Grenade Launcher > --- INVENTORY -------- Light Ion Engine Light Treads Compact Wheel Small Storage Unit Sensor Array Hacking Suite EM Pulse Gun Light Assault Rifle Mining Laser [Rating: 8] Favorites ----------- Power Ion Engine Engine Ion Engine Propulsion Light Treads Treads Light Treads Leg Aluminum Leg Wheel Compact Wheel Utility Large Storage Unit Device Heat Sink Storage Large Storage Unit Protection Propulsion Shielding Weapon Light Assault Rifle Energy Gun EM Pulse Gun Ballistic Gun Light Assault Rifle Launcher Grenade Launcher Build | -11 -10 -10 ------- Run | Yrd Mat Min Slots Evolved . | . . . Power . | . . . Propulsion . | . . . Utility . | . . . Weapon . | . . . Parts Attached 12 | 2 9 1 Power 2 | . 2 . Engine 2 | . 2 . Core . | . . . Reactor . | . . . Propulsion 4 | 2 2 . Treads 3 | 1 2 . Leg . | . . . Wheel 1 | 1 . . Hover . | . . . Flight . | . . . Utility 3 | . 2 1 Device 1 | . 1 . Storage 1 | . 1 . Processor . | . . . Hackware . | . . . Protection 1 | . . 1 Artifact . | . . . Weapon 3 | . 3 . Energy Gun 1 | . 1 . Energy Cannon . | . . . Ballistic Gun 1 | . 1 . Ballistic Cannon . | . . . Launcher 1 | . 1 . Special Weapon . | . . . Impact Weapon . | . . . Slashing Weapon . | . . . Piercing Weapon . | . . . Special Melee Weapon . | . . . Unidentified Prototypes . | . . . Parts Lost 9 | . 4 5 Power 2 | . 1 1 Propulsion 2 | . 1 1 Utility 1 | . . 1 Weapon 4 | . 2 2 Highest Loss Streak 5 | . 2 5 To Critical Strikes 1 | . 1 . Average Slot Usage (%) 82 | . 80 100 Engine 10 | . 10 14 Treads 24 | . 24 28 Wheel 1 | . 1 . Device 4 | . 3 12 Storage 14 | . 14 14 Energy Gun 4 | . 5 . Ballistic Gun 13 | . 13 14 Launcher 7 | . 6 14 Peak Build Rating 8 | 6 8 8 Average Rating 6 | 5 5 7 On Entrance 6 | 6 6 8 Naked Turns . | . . . Heaviest Build 30 | 13 30 30 Greatest Support 40 | 20 40 40 Greatest Overweight (x) . | . . . Average Overweight (x) . | . . . Largest Inventory Capacity 15 | 8 15 15 Average Capacity 12 | 8 12 15 Most Carried 13 | 7 13 12 Average Carried 8 | 5 7 11 Final Capacity 15 | 8 15 15 Final Carried 12 | 4 12 11 Class Distribution -------------------- 100% | Mutant Dominant Class ---------------- Mutant | -10/Materials Mutant | -10/Mines Resources | -11 -10 -10 ----------- Run | Yrd Mat Min Matter Collected 440 | 186 243 11 Remotely . | . . . Salvage Created 556 | . 510 46 Parts 53 | . 49 4 Haulers Intercepted . | . . . Recyclers Shooed 1 | . 1 . Parts Field Recycled . | . . . Retrieved Matter . | . . . Parts Self-Destructed . | . . . Prevented . | . . . Kills | -11 -10 -10 ------- Run | Yrd Mat Min Combat Hostiles Destroyed 14 | . 13 1 Guns 8 | . 7 1 AOE 6 | . 6 . Classes Destroyed 9 | . 7 2 Builder 4 | . 4 . Tunneler 1 | . . 1 Recycler 1 | . 1 . Mechanic 1 | . 1 . Operator 1 | . 1 . Watcher 2 | . 2 . Swarmer 6 | . 6 . Grunt 7 | . 7 . Assembled 1 | . . 1 Best Kill Streak 8 | . 8 1 Combat Bots Only 5 | . 5 1 Max Kills in Single Turn 7 | . 7 1 Gunslinging . | . . . Exploded 2 | . 2 . Melee . | . . . Uniques/NPCs Destroyed . | . . . Combat | -11 -10 -10 -------- Run | Yrd Mat Min Hostile Shots Fired 114 | . 88 26 Missed 29 | . 24 5 Damage Taken 1289 | . 777 512 Core 257 | . 141 116 Absorbed by Shields . | . . . Redirected to Shielding 15 | . . 15 Core Remaining (%) 100 | 100 . . Volleys Fired 71 | . 53 18 Largest 2 | . 2 1 Hottest 60 | . 60 20 Shots Fired 100 | . 82 18 Gun 97 | . 79 18 Cannon . | . . . Launcher 3 | . 3 . Special . | . . . Kinetic 67 | . 49 18 Thermal 18 | . 18 . Explosive 3 | . 3 . Electromagnetic 12 | . 12 . Robot Hit Streak 10 | . 7 10 Robot Miss Streak 7 | . 7 2 Penetration Max . | . . . Secondary Targets 1 | . 1 . Max Gunslinging Chain 1 | . 1 . Shots Hit Robots 54 | . 40 14 Core Hits 35 | . 26 9 Critical Kills . | . . . Critical Parts Destroyed . | . . . Critical Strikes . | . . . Melee Attacks . | . . . Impact . | . . . Slashing . | . . . Piercing . | . . . Sneak Attacks . | . . . Combat Hostiles . | . . . Follow-up Attacks . | . . . Damage Inflicted 1447 | . 1336 111 Guns 531 | . 423 108 Cannons . | . . . Explosions 913 | . 913 . Melee . | . . . Ramming 3 | . . 3 Kinetic 335 | . 227 108 Thermal 726 | . 726 . Explosive 266 | . 266 . Electromagnetic 117 | . 117 . Impact . | . . . Slashing . | . . . Piercing . | . . . Highest Corruption 8 | . . 8 Average Corruption 5 | . . 5 Corruption Purged . | . . . Corruption Blocked . | . . . Effects 1 | . . 1 Energy Discharges 1 | . . 1 Overload Shots . | . . . Overflow Damage 356 | . 356 . Projectiles . | . . . Explosions 356 | . 356 . Melee . | . . . Knockbacks . | . . . Impact . | . . . Kinetic . | . . . Secondary . | . . . Self-Inflicted Damage 100 | . 100 . Shots 2 | . 2 . Rammed 3 | . . 3 Targets Rammed 3 | . . 3 Kicked . | . . . Crushed . | . . . Highest Temperature 126 | . 126 . Average Temperature 39 | . 39 . Received Heat Transfer 267 | . 267 . Siege Activations . | . . . Robots Corrupted . | . . . Combat Hostiles . | . . . Parts Fried 1 | . 1 . Impact Corruptions . | . . . Robots Melted . | . . . Combat Hostiles . | . . . Parts Melted . | . . . Heat Transferred 575 | . 575 . Parts Sabotaged . | . . . Parts Stolen . | . . . Parts Stripped . | . . . Power Chain Reactions . | . . . Alert | -11 -10 -10 ------- Run | Yrd Mat Min Peak Influence 333 | . 333 67 Initial 62 | . . 62 Average 227 | . 247 62 Maximum Alert Level 1 | . 1 . Low Security (%) 39 | 100 32 100 Level 1 60 | . 67 . Level 2 . | . . . Level 3 . | . . . Level 4 . | . . . Level 5 . | . . . High Security . | . . . Max Security . | . . . Squads Dispatched 2 | . 2 . Investigation 1 | . 1 . Extermination . | . . . Reinforcement 1 | . 1 . Assault . | . . . Garrison . | . . . Intercept . | . . . Searches Triggered . | . . . Construction Impeded . | . . . Haulers Reinforced . | . . . Active Scanning Responses . | . . . Cargo Convoy Interrupts . | . . . Stealth | -11 -10 -10 --------- Run | Yrd Mat Min Distress Signals . | . . . Communications Jammed . | . . . Distress Signals . | . . . Times Spotted 31 | . 18 13 Peak Tracking Total 12 | . 5 12 Tactical Retreats 1 | . . 1 Traps | -11 -10 -10 ------- Run | Yrd Mat Min Traps Triggered 1 | . 1 . Indirectly . | . . . Trap Hack Attempts . | . . . Triggered . | . . . Disarmed . | . . . Reprogrammed . | . . . Reused . | . . . Traps Extracted . | . . . Installed . | . . . Triggered . | . . . Machines | -11 -10 -10 ---------- Run | Yrd Mat Min Machines Disabled 6 | . 6 . Max in Single Turn 6 | . 6 . Machines Repaired . | . . . Machines Dismantled . | . . . Machines Sabotaged . | . . . Overloaded Fab Kills . | . . . Hacking | -11 -10 -10 --------- Run | Yrd Mat Min Machines Accessed 2 | . 2 . Terminals 1 | . 1 . Fabricators . | . . . Repair Stations . | . . . Recycling Units 1 | . 1 . Scanalyzers . | . . . Garrison Access . | . . . Total Hacks 5 | . 5 . Successful 1 | . 1 . Failed 4 | . 4 . Catastrophic 1 | . 1 . Database Lockouts . | . . . Manual 5 | . 5 . Terminals 3 | . 3 . Fabricators . | . . . Repair Stations . | . . . Recycling Units 2 | . 2 . Scanalyzers . | . . . Garrison Access . | . . . Terminal Hacks . | . . . Fabricator Hacks . | . . . Repair Station Hacks . | . . . Recycling Unit Hacks . | . . . Scanalyzer . | . . . Garrison Access Hacks . | . . . Unauthorized Hacks 1 | . 1 . Terminals . | . . . Fabricators . | . . . Repair Stations . | . . . Recycling Units 1 | . 1 . Reject 1 | . 1 . Scanalyzers . | . . . Garrison Access . | . . . Data Cores Recovered . | . . . Used . | . . . Hacking Detections 1 | . 1 . Full Trace Events 1 | . 1 . Feedback Events . | . . . Feedback Blocked . | . . . Robot Schematics Acquired . | . . . Robots Built . | . . . Authchips . | . . . Time . | . . . Total Robot Build Rating . | . . . Part Schematics Acquired . | . . . Parts Built . | . . . Authchips . | . . . Time . | . . . Total Part Build Rating . | . . . Parts Repaired . | . . . Time . | . . . Parts Recycled . | . . . Recycled Matter . | . . . Retrieved Matter . | . . . Retrieved Components . | . . . Parts Scanalyzed . | . . . Part Schematics Acquired . | . . . Parts Damaged . | . . . Bothacking | -11 -10 -10 ------------ Run | Yrd Mat Min Used RIF Installer . | . . . Robots Hacked . | . . . Non-combat . | . . . Combat . | . . . Robot Hacks Applied . | . . . Relay Couplers Released . | . . . Fabnet Peak Effective % . | . . . Robots Rewired . | . . . Allies Hacked . | . . . Hacks Repelled . | . . . Allies | -11 -10 -10 -------- Run | Yrd Mat Min Total Allies . | . . . Largest Group . | . . . Highest-Rated Group . | . . . Highest-Rated Ally . | . . . Total Orders . | . . . Ally Attacks . | . . . Total Damage . | . . . Kills . | . . . Allies Corrupted . | . . . Allies Melted . | . . . Intel | -11 -10 -10 ------- Run | Yrd Mat Min Robot Analysis Total . | . . . Derelict Logs Recovered . | . . . Drone Launches . | . . . Drone Recoveries . | . . . Exploration | -11 -10 -10 ------------- Run | Yrd Mat Min Turns Passed 1024 | 7 915 102 Spaces Moved 522 | 3 480 39 Core . | . . . Treads 509 | 1 469 39 Legs . | . . . Wheels 13 | 2 11 . Hover . | . . . Flight . | . . . Fastest Speed 100 | 100 100 160 Average Speed 158 | 120 158 160 Slowest Speed 160 | 160 160 160 Overloaded Moves . | . . . Propulsion Burnouts . | . . . Robots Hopped . | . . . Cave-ins Triggered . | . . . Exploration Rate (%) 21 | 2 50 12 Regions Visited 2 Branch Regions 1 Pre-discovered Areas . | . . . Known Exits Taken . | . . . Unknown Exits Taken 2 | 1 1 . Scrap Searched . | . . . Spaces Dug . | . . . Terrain Destroyed 54 | . 54 . Melee . | . . . Projectile . | . . . AOE 54 | . 54 . Terrain Rammed . | . . . Walls Destroyed . | . . . Machines Disabled . | . . . Actions | -11 -10 -10 --------- Run | Yrd Mat Min Total 624 | 8 554 62 Wait 1 | . . 1 Move 520 | 2 479 39 Hop . | . . . Pick Up 10 | . 10 . Fast Attach 3 | . 3 . Attach 6 | 2 3 1 Detach 3 | 2 1 . Swap 3 | . 3 . Drop 4 | 2 2 . Fire 71 | . 53 18 Melee . | . . . Ram . | . . . Kick . | . . . Crush 3 | . . 3 Escape Stasis . | . . . Rewire . | . . . Trap . | . . . Miscellaneous . | . . . Route ------- -11/Scrapyard -10/Materials (discovered 2 exits: [*Mat] / [*Min]) -10/Mines History --------- Turn | Location | Event 5 | -11/Scrapyard | Discovered new exit (range 1) 8 | -11/Scrapyard | Entered Materials 186 | -10/Materials | Discovered new exit (range 12) 306 | -10/Materials | Build established: Mutant 477 | -10/Materials | Discovered new exit (range 16) 498 | -10/Materials | Core integrity fell below 50% 508 | -10/Materials | Derelicts attacked the area 923 | -10/Materials | Entered Mines 985 | -10/Mines | Assembled infested the area 1017 | -10/Mines | Core integrity fell below 20% 1025 | -10/Mines | Destroyed by as-14371 with Assembled Maul Last Messages --------------- dispatching Demolisher response squad. 00987_ Acquired 5 matter. 00994_ as-69312 sneak attacks. 00994_ K-01 Serf knocked back. 00994_ Slammed into K-01 Serf. 01006_ as-25404 destroyed. 01013_ Heat Sink destroyed. 01013_ System corrupted by crushing effect (+4). 01020_ Slammed into as-69312. 01020_ Lgt. Treads destroyed. 01021_ Acquired 5 matter. 01022_ Slammed into as-09672. 01022_ Ion Engine destroyed. 01022_ System corrupted by crushing effect (+4). 01024_ System corrupted: Energy discharge (-20). 01025_ Acquired 1 matter. 01025_ Lgt. Assault Rifle destroyed. 01025_ Grenade Launcher destroyed. 01025_ System corrupted by crushing effect (+2). 01025_ System corrupted by crushing effect (+4). Map ----- +----------------------------------------------------+ | | | | | | | | | | | | | | | | | | | | | | | | | | | | | ?????????????????????????????????????????????????? | | ??????????????????????????????????????????????#### | | ????????????????????????????####?????????????## | | ??????????????????????????### ##????????????# | | ?????????????????????????## #???????????## | | ?????????????????????????# ##??????????# | | ?????????????????????????# % ##????????## | | ????????????????????????## *| ##???????# | | ???????????????????????## !%= ######### ### | | ???????????????????###?# ## ##?# | | ???????????????????? ##a#### #??? | | ?????????????????????#%##@#??## ## ###########??? | | ?????????????????????# aaa#???##### #????????????? | | ?????????????????????####a#???????# #????????????? | | ????????????????????????#a#??????? #????????????? | | ????????????????????????# #???????###????????????? | | ????????????????????????#a#??????????????????????? | | ???????????????????????? #??????????????????????? | | ????????????????????????#%#??????????????????????? | | ????????????????????????# #??????????????????????? | | ????????????????????????? ???????????????????????? | | ????????????????????????? ???????????????????????? | | ????????????????????????? ???????????????????????? | | ?????????????????????????#???????????????????????? | | ?????????????????????????????????????????????????? | | ?????????????????????????????????????????????????? | | ?????????????????????????????????????????????????? | | ?????????????????????????????????????????????????? | | ?????????????????????????????????????????????????? | | ?????????????????????????????????????????????????? | | ?????????????????????????????????????????????????? | | ?????????????????????????????????????????????????? | | ?????????????????????????????????????????????????? | | ?????????????????????????????????????????????????? | | ?????????????????????????????????????????????????? | | ?????????????????????????????????????????????????? | +----------------------------------------------------+ Best States ------------- Heat Dissipation 35 Energy Generation 10 Energy Capacity 250 Matter Stores 300 Matter Capacity 300 Sight Range 16 Terrain Scan Density 10 Propulsion Shielding 33 Evasion (%) 40 Recoil Reduction 2 Item Schematics ----------------- None Robot Schematics ------------------ None Fabricated ------------ Nothing Alien Tech Used ----------------- None Achievements -------------- None Challenges ------------ None Game ------ Seed GhostCobblerRefractor Manual? 0 Play Time 00:06:00 Cumulative 76.3 hours Start 2024.11.27 @ 13:04:10 End 2024.11.27 @ 13:09:16 Sessions 1 Manual Loads 0 Difficulty Rogue Special Mode None Game No. 96 Rogue 52 Adventurer 44 Explorer 0 Win Type - Total 0 Types 0/0/0/0/0/0/0/0/0 Lore% 21 Gallery% 47 Achievement% 35 Wizard Run 0 Options --------- Layout 1 ASCII 0 Keyboard 1 Movement Vi Keybinds 0 Fullscreen 1 Font 24/Terminus Map View 50x40 Zoom Use 0% Tactical HUD 1 Map Filters NONE Filters NONE Steam 1 RUN: b111121e-ba23-46dc-926b-6fa4c699b48e